bitfinex/quotes_SOLUSD_20250731
["timestamp","ask_amount","ask_price","bid_price","bid_amount"]
[1753945423380,66.46468397,181.54,181.53,27.88237722]
[1753945423686,104.94468397,181.54,181.53,27.88237722]
[1753945424085,66.34690951,181.54,181.53,16.78468397]
[1753945424393,27.86690951,181.54,181.53,17.48468397]
[1753945424595,66.34690951,181.54,181.53,17.48468397]
[1753945425085,66.34690951,181.54,181.53,44.44237722]
[1753945426105,47.9928475,181.54,181.52,27.79074843]
[1753945426300,44.29102637,181.54,181.52,27.79074843]
[1753945426902,44.29102637,181.54,181.43,27.97866414]
[1753945427221,44.99102637,181.54,181.4,38.48]
[1753945427412,60.85102637,181.54,181.53,16.78468397]
[1753945427588,44.29102637,181.54,181.53,16.78468397]
[1753945427789,44.29102637,181.54,181.39,38.68]
[1753945427989,44.29102637,181.54,181.53,16.78468397]
[1753945428291,82.92902637,181.54,181.53,10.75542755]
[1753945428491,100.18902637,181.54,181.53,7.74079934]
[1753945428715,100.18902637,181.54,181.53,4.72617113]
[1753945428912,100.18902637,181.54,181.53,1.71154292]
[1753945429108,77.41102637,181.54,181.53,0.22468397]
[1753945429306,77.41102637,181.54,181.53,16.78468397]
[1753945429307,82.03809731,181.54,181.53,16.78468397]
[1753945429491,93.97102637,181.54,181.53,16.78468397]
[1753945430099,60.85102637,181.54,181.53,16.78468397]
[1753945430609,60.85102637,181.54,181.53,17.48468397]
[1753945431224,60.85102637,181.54,181.53,0.7]
[1753945431428,44.29102637,181.54,181.53,0.7]
[1753945431714,16.78468397,181.54,181.53,0.7]
[1753945433510,38.5,181.55,181.53,0.7]
[1753945434103,16.78468397,181.57,181.53,0.7]
[1753945434320,55.28468397,181.57,181.53,0.7]
[1753945434916,0.03,181.56,181.53,0.7]
[1753945436121,0.03,181.56,181.53,0.76]
[1753945436521,0.03,181.54,181.53,0.76]
[1753945439130,4.65707094,181.54,181.53,0.76]
[1753945439329,3.74194354,181.54,181.52,27.77441881]
[1753945439536,4.687071,181.54,181.52,27.77441881]
[1753945439726,8.39901454,181.54,181.52,27.77441881]
[1753945439915,0.03,181.54,181.52,27.77441881]
[1753945441349,0.03,181.54,181.53,0.69]
[1753945444627,2.239517,181.54,181.53,0.69]
[1753945445248,2.239517,181.54,181.52,27.77441881]
[1753945445551,2.239517,181.54,181.47,27.09057082]
[1753945446256,2.239517,181.54,181.47,37.09057082]
[1753945446824,2.239517,181.54,181.47,10.0]
[1753945447556,2.239517,181.54,181.48,0.69]
[1753945448851,147.3,181.53,181.48,0.69]
[1753945451950,3.71264073,181.52,181.48,0.69]
[1753945452853,3.71264073,181.52,181.46,48.48]
[1753945453042,3.71264073,181.52,181.49,0.69]
[1753945453438,3.71264073,181.52,181.46,48.48]
[1753945453756,3.71264073,181.52,181.5,0.69]
[1753945454140,3.71264073,181.52,181.49,0.69]
[1753945456556,3.71264073,181.52,181.5,0.69]
[1753945456747,20.28493773,181.52,181.5,0.69]
[1753945456949,3.71264073,181.51,181.5,0.69]
[1753945457939,3.71264073,181.51,181.47,10.0]
[1753945458157,3.71264073,181.51,181.48,0.69]
[1753945460167,4.41264073,181.51,181.48,0.69]
[1753945460540,3.71264073,181.51,181.47,0.06]
[1753945460743,0.7,181.5,181.47,0.06]
[1753945461254,0.7,181.5,181.47,0.77]
[1753945461454,16.572297,181.49,181.47,0.77]
[1753945461661,3.71264073,181.48,181.47,0.77]
[1753945462566,3.71264073,181.48,181.47,0.06]
[1753945462753,0.72,181.48,181.47,0.06]
[1753945464060,3.71264073,181.52,181.47,0.06]
[1753945464261,0.72,181.51,181.47,0.06]
[1753945464469,3.71264073,181.52,181.47,0.06]
[1753945464470,0.72,181.5,181.47,0.06]
[1753945464651,17.294128,181.5,181.47,0.06]
[1753945464851,3.71264073,181.49,181.47,0.06]
[1753945465552,4.43264073,181.49,181.47,0.06]
[1753945467271,0.72,181.48,181.47,0.06]
[1753945467462,17.294128,181.48,181.47,0.06]
[1753945467654,21.00676873,181.48,181.47,0.06]
[1753945468261,21.00676873,181.48,181.42,0.71]
[1753945468572,4.43264073,181.47,181.42,10.71]
[1753945468753,0.72,181.46,181.42,39.19]
[1753945469776,16.574128,181.45,181.42,39.19]
[1753945469973,3.71264073,181.44,181.42,39.19]
[1753945470556,0.72,181.48,181.43,0.71]
[1753945470776,3.71264073,181.49,181.43,0.71]
[1753945470974,17.296875,181.47,181.43,0.71]
[1753945471280,3.71264073,181.46,181.43,10.71]
[1753945471453,3.71264073,181.46,181.44,10.71]
[1753945471654,16.575043,181.46,181.44,10.71]
[1753945471851,3.71264073,181.45,181.44,10.0]
[1753945472461,16.575043,181.45,181.44,10.71]
[1753945472668,20.28768373,181.45,181.44,10.71]
[1753945473275,20.28768373,181.45,181.44,0.71]
[1753945473467,20.28768373,181.45,181.44,10.71]
[1753945473992,20.28768373,181.45,181.44,38.48]
[1753945473993,21.00768373,181.45,181.44,38.48]
[1753945476001,20.28768373,181.45,181.44,38.48]
[1753945478365,21.00768373,181.45,181.44,38.48]
[1753945478868,21.00768373,181.45,181.44,29.15945348]
[1753945480762,20.28768373,181.45,181.44,29.15945348]
[1753945482777,21.00768373,181.45,181.43,0.06]
[1753945482988,3.71264073,181.44,181.43,0.06]
[1753945483491,16.576876,181.44,181.43,0.06]
[1753945483690,21.00951673,181.44,181.43,0.06]
[1753945488207,20.28951673,181.44,181.43,0.06]
[1753945489568,21.00951673,181.44,181.43,0.06]
[1753945491087,28.36292099,181.44,181.43,0.06]
[1753945491490,0.37417365,181.43,181.41,0.2]
[1753945491672,0.7,181.42,181.39,0.2]
[1753945491869,0.37417365,181.41,181.39,0.2]
[1753945492078,7.35340426,181.41,181.39,0.2]
[1753945492293,4.41264073,181.4,181.39,0.2]
[1753945492593,28.34841799,181.4,181.39,0.2]
[1753945498486,20.99501373,181.4,181.33,38.48]
[1753945498803,19.12266174,181.39,181.33,48.48]
[1753945499004,4.41264073,181.38,181.33,48.48]
[1753945499174,3.71264073,181.38,181.33,48.48]
[1753945499376,8.05340426,181.37,181.33,49.15]
[1753945499684,3.71264073,181.36,181.33,49.15]
[1753945499891,4.46098803,181.36,181.33,49.15]
[1753945500099,11.06604499,181.36,181.33,49.15]
[1753945500400,3.71264073,181.35,181.33,49.15]
[1753945500583,11.06604499,181.35,181.33,49.15]
[1753945500903,3.71264073,181.34,181.33,49.15]
[1753945501283,3.71264073,181.34,181.33,38.48]
[1753945501692,11.76604499,181.34,181.33,38.48]
[1753945502606,11.06604499,181.34,181.33,38.54]
[1753945502806,11.76604499,181.34,181.33,38.54]
[1753945504080,11.76604499,181.34,181.33,0.06]
[1753945508706,26.0,181.32,181.31,38.54]
[1753945508885,29.71264073,181.32,181.31,38.54]
[1753945509089,37.76604499,181.32,181.31,38.54]
[1753945509492,37.06604499,181.32,181.31,39.21]
[1753945510006,53.65391899,181.32,181.31,38.54]
[1753945514692,54.35391899,181.32,181.31,38.54]
[1753945515918,54.35391899,181.32,181.31,0.06]
[1753945516115,54.35391899,181.32,181.31,38.56]
[1753945516904,54.35391899,181.32,181.31,0.06]
[1753945517212,54.35391899,181.32,181.29,38.5]
[1753945517213,7.35340426,181.31,181.29,38.5]
[1753945517418,3.71264073,181.3,181.29,48.5]
[1753945517606,6.32932688,181.3,181.29,38.5]
[1753945517799,11.06604499,181.3,181.29,49.17]
[1753945518000,27.65391899,181.3,181.29,48.5]
[1753945519517,27.65391899,181.3,181.29,38.5]
[1753945519714,27.65391899,181.3,181.29,48.5]
[1753945520390,27.65391899,181.3,181.29,49.17]
[1753945520810,27.65391899,181.3,181.29,38.5]
[1753945521002,27.65391899,181.3,181.29,48.5]
[1753945523813,27.65391899,181.3,181.29,38.5]
[1753945524016,28.31391899,181.3,181.27,10.0]
[1753945524217,3.71264073,181.29,181.28,38.5]
[1753945524393,11.72604499,181.29,181.28,38.5]
[1753945524598,26.0,181.26,181.25,10.0]
[1753945524795,26.0,181.26,181.25,49.19]
[1753945525320,42.591544,181.26,181.25,10.0]
[1753945525619,42.591544,181.26,181.25,49.19]
[1753945528401,46.29369084,181.26,181.25,49.19]
[1753945533625,52.19287428,181.26,181.25,48.5]
[1753945537414,52.19287428,181.26,181.25,49.19]
[1753945538035,3.70214684,181.26,181.25,49.19]
[1753945538257,4.49525499,181.3,181.26,10.0]
[1753945538528,16.588791,181.29,181.28,10.0]
[1753945538732,16.588791,181.29,181.28,49.19]
[1753945538733,3.70826612,181.29,181.28,49.19]
[1753945539030,26.0,181.29,181.28,49.19]
[1753945539335,29.70826612,181.29,181.28,49.19]
[1753945540026,3.70826612,181.29,181.28,49.19]
[1753945540238,8.12713449,181.3,181.28,49.19]
[1753945540537,3.70826612,181.3,181.29,10.69]
[1753945540835,5.899184,181.31,181.3,10.0]
[1753945541128,14.13053695,181.31,181.3,49.19]
[1753945541633,8.23135295,181.31,181.3,48.5]
[1753945541807,8.89135295,181.31,181.3,48.5]
[1753945542006,9.2655266,181.31,181.3,10.0]
[1753945542211,16.24475721,181.31,181.3,48.5]
[1753945542412,16.24475721,181.31,181.3,38.5]
[1753945543030,26.0,181.28,181.27,10.0]
[1753945543221,30.37055502,181.28,181.27,48.5]
[1753945543423,37.72395928,181.28,181.27,48.5]
[1753945546418,37.72395928,181.28,181.27,19.79007982]
[1753945546619,37.72395928,181.28,181.26,38.5]
[1753945546815,3.71055502,181.27,181.26,38.5]
[1753945547023,26.0,181.29,181.26,55.28468397]
[1753945547349,26.0,181.29,181.27,0.69]
[1753945547521,26.0,181.29,181.28,39.19]
[1753945547732,29.71699703,181.29,181.28,39.19]
[1753945548970,3.71699703,181.29,181.28,39.19]
[1753945549251,3.71699703,181.3,181.28,39.19]
[1753945549834,3.71699703,181.3,181.28,38.5]
[1753945550633,4.37699703,181.3,181.28,38.5]
[1753945551268,20.96395403,181.3,181.28,38.5]
[1753945551568,3.71699703,181.29,181.28,38.5]
[1753945551942,5.15224604,181.3,181.28,38.5]
[1753945552141,26.0,181.29,181.28,38.5]
[1753945552374,29.71699703,181.29,181.28,38.5]
[1753945554765,35.23302107,181.29,181.28,38.5]
[1753945558848,35.23302107,181.29,181.28,39.21]
[1753945559564,35.23302107,181.29,181.28,38.5]
[1753945560244,35.23302107,181.29,181.28,39.21]
[1753945562474,51.81997907,181.29,181.28,39.21]
[1753945564259,51.81997907,181.29,181.28,38.5]
[1753945566181,52.51997907,181.29,181.25,0.06]
[1753945566362,48.80298204,181.29,181.26,38.48]
[1753945566557,62.59304216,181.29,181.26,38.48]
[1753945567774,61.89304216,181.29,181.26,39.19]
[1753945568755,61.89304216,181.29,181.27,0.71]
[1753945568951,61.89304216,181.29,181.28,38.48]
[1753945569258,49.02315257,181.29,181.28,38.48]
[1753945569474,61.89304116,181.29,181.28,38.48]
[1753945569673,65.61007694,181.29,181.28,38.48]
[1753945569971,65.61007694,181.29,181.28,39.19]
[1753945570172,51.82001682,181.29,181.28,39.19]
[1753945570356,46.30399278,181.29,181.28,39.19]
[1753945570679,0.03,181.31,181.28,55.97468397]
[1753945570976,16.614206,181.31,181.29,18.04628637]
[1753945571272,26.0,181.3,181.29,17.33628637]
[1753945571481,26.0,181.3,181.29,55.81628637]
[1753945571646,5.54546258,181.31,181.29,55.97468397]
[1753945571851,5.54546258,181.31,181.3,0.71]
[1753945572072,0.03,181.31,181.3,0.71]
[1753945573253,22.12870558,181.31,181.3,0.71]
[1753945574084,22.12870558,181.31,181.29,55.97468397]
[1753945574846,22.12870558,181.31,181.29,55.26468397]
[1753945575052,22.82870558,181.31,181.29,55.26468397]
[1753945575978,22.82870558,181.31,181.29,38.48]
[1753945576177,26.0,181.29,181.28,104.48468397]
[1753945576357,26.0,181.29,181.28,142.96468397]
[1753945576869,31.51602404,181.29,181.28,142.96468397]
[1753945579866,31.51602404,181.29,181.28,143.67468397]
[1753945581662,22.10003278,181.3,181.28,143.67468397]
[1753945581868,22.10003278,181.3,181.28,55.97468397]
[1753945582572,22.10003278,181.3,181.28,55.26468397]
[1753945583366,22.81003278,181.3,181.28,55.26468397]
[1753945586593,22.81003278,181.3,181.29,38.48]
[1753945588271,22.10003278,181.3,181.29,38.48]
[1753945590591,22.10003278,181.3,181.29,39.16]
[1753945591098,22.10003278,181.3,181.29,38.48]
[1753945592174,22.81003278,181.3,181.29,38.48]
[1753945592499,26.53036814,181.3,181.29,38.48]
[1753945596107,26.56036814,181.3,181.29,38.48]
[1753945599303,25.85036814,181.3,181.29,38.48]
[1753945600089,26.56036814,181.3,181.29,38.48]
[1753945601314,0.03,181.3,181.29,55.94468397]
[1753945602215,5.5457198,181.3,181.29,55.94468397]
[1753945606615,9.26951135,181.3,181.29,55.94468397]
[1753945606801,9.26951135,181.3,181.29,55.26468397]
[1753945608114,9.26977115,181.3,181.29,55.26468397]
[1753945609109,9.26977115,181.3,181.29,55.94468397]
[1753945609509,0.03,181.3,181.29,55.94468397]
[1753945610318,5.5457198,181.3,181.29,55.94468397]
[1753945611609,5.5457198,181.3,181.29,55.26468397]
[1753945612927,0.03,181.3,181.29,55.26468397]
[1753945613094,0.03,181.3,181.29,55.92468397]
[1753945613918,0.03,181.3,181.29,55.26468397]
[1753945615213,3.7561118,181.3,181.29,55.26468397]
[1753945615416,9.2718316,181.3,181.29,55.26468397]
[1753945615614,9.9518316,181.3,181.29,55.26468397]
[1753945616815,9.2718316,181.3,181.29,55.26468397]
[1753945617423,9.9518316,181.3,181.29,55.26468397]
[1753945618218,9.9518316,181.3,181.29,55.24468397]
[1753945624324,9.9518316,181.3,181.29,16.78468397]
[1753945624515,9.9518316,181.3,181.29,55.24468397]
[1753945626524,9.2718316,181.3,181.29,55.24468397]
[1753945627011,9.9518316,181.3,181.29,55.24468397]
[1753945628434,9.9518316,181.3,181.29,38.46]
[1753945628936,26.5369546,181.3,181.29,38.46]
[1753945629525,26.5369546,181.3,181.29,10.54715155]
[1753945629727,26.5369546,181.3,181.29,1e-08]
[1753945630234,26.5369546,181.3,181.28,38.46]
[1753945630434,4.4061118,181.29,181.28,38.46]
[1753945630642,9.92213584,181.29,181.28,38.46]
[1753945630942,26.50909284,181.29,181.28,38.46]
[1753945634330,26.50909284,181.29,181.27,0.06]
[1753945634532,3.7261118,181.28,181.27,38.52]
[1753945634736,4.4061118,181.28,181.27,38.52]
[1753945635146,4.4061118,181.28,181.27,0.06]
[1753945636337,9.92244013,181.28,181.27,0.06]
[1753945639025,26.50939713,181.28,181.27,0.06]
[1753945639323,52.50939713,181.28,181.27,0.06]
[1753945639538,16.586957,181.28,181.27,17.50468397]
[1753945639746,22.10328533,181.28,181.27,17.50468397]
[1753945640037,5.51632833,181.28,181.27,17.50468397]
[1753945640341,25.85045396,181.3,181.27,17.50468397]
[1753945640561,22.13093456,181.3,181.29,16.78468397]
[1753945640725,25.85016038,181.3,181.29,16.78468397]
[1753945641043,9.26503738,181.3,181.29,17.44468397]
[1753945641423,5.54581156,181.3,181.29,17.44468397]
[1753945644638,0.03,181.3,181.29,17.44468397]
[1753945644838,0.03,181.3,181.29,16.78468397]
[1753945645444,26.0,181.29,181.28,126.16]
[1753945645632,26.0,181.29,181.28,142.94468397]
[1753945645946,29.71894118,181.29,181.28,142.94468397]
[1753945646551,35.23496522,181.29,181.28,142.94468397]
[1753945648343,31.51602404,181.29,181.28,143.60468397]
[1753945649847,31.51602404,181.29,181.28,17.44468397]
[1753945650018,31.51602404,181.29,181.28,55.90468397]
[1753945653835,35.2355166,181.29,181.28,55.90468397]
[1753945654032,35.2355166,181.29,181.28,55.24468397]
[1753945654439,31.51602404,181.29,181.28,55.24468397]
[1753945654736,35.23561102,181.29,181.28,55.24468397]
[1753945654938,35.93561102,181.29,181.28,55.24468397]
[1753945657855,35.93561102,181.29,181.28,16.78468397]
[1753945658056,35.93561102,181.29,181.28,55.24468397]
[1753945658856,35.23561102,181.29,181.28,55.24468397]
[1753945659055,35.23561102,181.29,181.28,55.90468397]
[1753945659247,35.23561102,181.29,181.28,55.24468397]
[1753945660363,35.23561102,181.29,181.28,16.78468397]
[1753945660535,35.23561102,181.29,181.28,55.24468397]
[1753945661862,35.23561102,181.29,181.28,142.94468397]
[1753945663460,35.23561102,181.29,181.28,104.48468397]
[1753945663760,35.23561102,181.29,181.28,142.94468397]
[1753945665561,35.23561102,181.29,181.28,143.60468397]
[1753945666140,5.54591852,181.3,181.29,16.78468397]
[1753945666639,5.54591852,181.3,181.29,17.44468397]
[1753945666966,5.54591852,181.3,181.29,16.78468397]
[1753945667760,5.54591852,181.3,181.29,17.44468397]
[1753945668065,26.03,181.3,181.29,17.99628637]
[1753945668267,26.03,181.3,181.29,17.44468397]
[1753945669058,0.03,181.3,181.29,17.44468397]
[1753945669864,0.03,181.3,181.29,16.78468397]
[1753945670953,0.73,181.3,181.29,16.78468397]
[1753945671267,0.73,181.3,181.29,55.22468397]
[1753945671766,32.2457198,181.3,181.29,55.22468397]
[1753945672153,32.2457198,181.3,181.29,16.78468397]
[1753945672367,32.2457198,181.3,181.29,55.22468397]
[1753945672967,31.5457198,181.3,181.29,55.22468397]
[1753945674267,35.26599946,181.3,181.29,55.22468397]
[1753945674454,35.95599946,181.3,181.29,55.22468397]
[1753945676046,35.26599946,181.3,181.29,55.22468397]
[1753945677948,35.95599946,181.3,181.29,55.22468397]
[1753945678671,35.26599946,181.3,181.29,55.22468397]
[1753945679752,51.84928846,181.3,181.29,55.22468397]
[1753945680894,52.53928846,181.3,181.29,55.22468397]
[1753945681457,46.33356866,181.3,181.29,55.22468397]
[1753945681770,51.84928846,181.3,181.29,55.22468397]
[1753945687379,51.84928846,181.3,181.28,0.06]
[1753945687581,4.41027966,181.29,181.28,0.06]
[1753945687758,4.41027966,181.29,181.28,38.5]
[1753945687961,6.62162966,181.29,181.28,38.5]
[1753945689258,5.93162966,181.29,181.28,55.28468397]
[1753945689583,11.4476537,181.29,181.28,55.8363168]
[1753945690169,5.93162966,181.29,181.28,55.8363168]
[1753945690680,11.4476537,181.29,181.28,55.8363168]
[1753945694981,12.1376537,181.29,181.28,55.8363168]
[1753945695175,12.1376537,181.29,181.28,55.28468397]
[1753945695986,12.14296581,181.29,181.28,55.28468397]
[1753945703690,12.14296581,181.29,181.28,0.06]
[1753945703865,12.14296581,181.29,181.28,38.5]
[1753945704265,12.14296581,181.29,181.28,0.06]
[1753945704488,12.14296581,181.29,181.28,1e-08]
[1753945704796,7.29286637,181.28,181.27,1e-08]
[1753945705090,11.69845814,181.28,181.27,1e-08]
[1753945705394,25.91168214,181.28,181.27,1e-08]
[1753945706192,31.42801047,181.28,181.27,1e-08]
[1753945708093,33.49652871,181.28,181.27,1e-08]
[1753945711269,31.42801047,181.28,181.27,1e-08]
[1753945711771,33.49376182,181.28,181.27,1e-08]
[1753945712082,23.4551441,181.28,181.27,1e-08]
[1753945712694,24.1351441,181.28,181.27,1e-08]
[1753945716582,23.4551441,181.28,181.27,1e-08]
[1753945718979,14.213224,181.28,181.27,0.66000001]
[1753945720795,14.213224,181.28,181.27,1e-08]
[1753945721202,14.213224,181.28,181.27,0.66000001]
[1753945723499,14.213224,181.28,181.27,1e-08]
[1753945724401,14.213224,181.28,181.27,0.66000001]
[1753945725485,14.213224,181.28,181.27,17.99634724]
[1753945725686,0.03,181.3,181.28,16.78468397]
[1753945725908,14.243224,181.3,181.29,38.44]
[1753945726195,14.243224,181.3,181.29,39.1]
[1753945729005,0.03,181.3,181.29,143.58468397]
[1753945729205,26.03,181.3,181.29,143.58468397]
[1753945733585,26.03,181.3,181.29,142.90468397]
[1753945733798,26.03,181.3,181.29,143.58468397]
[1753945735714,26.03,181.3,181.29,105.16468397]
[1753945735934,26.03,181.3,181.29,143.58468397]
[1753945737948,26.03,181.3,181.29,105.16468397]
[1753945738150,26.03,181.3,181.29,143.58468397]
[1753945741543,26.03,181.3,181.29,142.90468397]
[1753945742533,6.2457198,181.3,181.29,87.7]
[1753945742735,6.2457198,181.3,181.29,126.12]
[1753945743036,26.0,181.28,181.27,1e-08]
[1753945743230,26.0,181.28,181.27,38.42000001]
[1753945743443,26.7,181.28,181.27,38.42000001]
[1753945744259,48.80145133,181.28,181.27,38.42000001]
[1753945763877,52.51935774,181.28,181.27,38.42000001]
[1753945765274,52.51935774,181.28,181.27,1e-08]
[1753945765469,52.51935774,181.28,181.27,38.40000001]
[1753945765655,51.81935774,181.28,181.27,38.40000001]
[1753945768780,46.30302941,181.28,181.27,55.18468398]
[1753945768954,29.71790641,181.28,181.27,143.57468398]
[1753945769279,3.71790641,181.28,181.27,143.57468398]
[1753945769479,16.584207,181.29,181.27,143.57468398]
[1753945769775,16.584207,181.29,181.28,0.69]
[1753945769973,20.30171913,181.29,181.28,0.69]
[1753945770172,25.81774317,181.29,181.28,0.69]
[1753945770480,25.81774317,181.29,181.27,143.57468398]
[1753945770678,22.10023104,181.29,181.27,143.57468398]
[1753945771276,0.03,181.28,181.27,142.88468398]
[1753945771474,0.03,181.28,181.27,143.57468398]
[1753945772676,26.03,181.28,181.27,143.57468398]
[1753945772878,26.03,181.28,181.27,55.87468398]
[1753945774370,0.03,181.28,181.27,144.12634724]
[1753945774559,0.03,181.28,181.27,143.57468398]
[1753945779988,26.03,181.28,181.27,143.57468398]
[1753945782882,26.03,181.28,181.27,142.88468398]
[1753945787593,26.72,181.28,181.27,142.88468398]
[1753945788502,26.03,181.28,181.27,142.88468398]
[1753945791694,26.71,181.28,181.27,142.88468398]
[1753945793304,26.03,181.28,181.27,142.88468398]
[1753945796600,26.03,181.28,181.27,143.55468398]
[1753945799202,26.03,181.28,181.27,142.88468398]
[1753945808415,0.03,181.28,181.27,158.40131662]
[1753945808590,0.03,181.28,181.27,152.88468398]
[1753945809198,0.03,181.28,181.27,142.88468398]
[1753945809397,0.71,181.28,181.27,104.48468398]
[1753945809602,0.71,181.28,181.27,142.86468398]
[1753945810529,0.71,181.28,181.27,55.16468398]
[1753945815620,0.71,181.28,181.27,142.86468398]
[1753945817702,26.03,181.28,181.27,142.86468398]
[1753945821104,26.69,181.28,181.27,142.86468398]
[1753945829148,32.20632833,181.28,181.27,142.86468398]
[1753945833218,26.03,181.28,181.27,142.86468398]
[1753945839037,26.69,181.28,181.27,142.86468398]
[1753945842331,32.20632833,181.28,181.27,142.86468398]
[1753945842527,35.9309305,181.28,181.27,142.86468398]
[1753945843336,30.41460217,181.28,181.27,142.86468398]
[1753945847640,35.9309305,181.28,181.27,104.48468398]
[1753945847843,35.9309305,181.28,181.27,142.86468398]
[1753945848043,52.5151365,181.28,181.27,142.86468398]
[1753945851454,52.51507935,181.28,181.27,142.86468398]
[1753945855751,26.51507935,181.28,181.27,87.70000001]
[1753945855929,26.51507935,181.28,181.27,126.06000001]
[1753945856259,27.60558702,181.28,181.27,38.36000001]
[1753945856636,31.74320444,181.28,181.27,38.36000001]
[1753945857055,31.74320444,181.28,181.27,1e-08]
[1753945858946,30.65269677,181.28,181.27,1e-08]
[1753945859137,29.99269677,181.28,181.27,1e-08]
[1753945859340,25.85507935,181.28,181.27,1e-08]
[1753945859662,20.33875102,181.28,181.27,1e-08]
[1753945860038,20.33875102,181.28,181.27,87.70000001]
[1753945860439,20.33875102,181.28,181.27,88.41000001]
[1753945861140,25.85507935,181.28,181.27,88.41000001]
[1753945861343,25.85507935,181.28,181.27,87.70000001]
[1753945867671,26.53507935,181.28,181.27,87.70000001]
[1753945884197,25.85507935,181.28,181.27,126.06000001]
[1753945890896,26.55507935,181.28,181.27,126.06000001]
[1753945891494,25.85507935,181.28,181.27,126.06000001]
[1753945892995,25.85572521,181.28,181.27,126.06000001]
[1753945901099,26.55572521,181.28,181.27,126.06000001]
[1753945910502,26.55572521,181.28,181.27,87.70000001]
[1753945910902,35.35517354,181.28,181.27,87.70000001]
[1753945911088,30.69868494,181.28,181.27,87.70000001]
[1753945911292,35.35842701,181.28,181.27,87.70000001]
[1753945911591,37.42954311,181.28,181.27,87.70000001]
[1753945913295,35.35842701,181.28,181.27,1e-08]
[1753945915018,37.42827491,181.28,181.27,1e-08]
[1753945916330,35.35842701,181.28,181.27,1e-08]
[1753945918403,35.35221627,181.28,181.27,1e-08]
[1753945919916,35.35174674,181.28,181.27,1e-08]
[1753945921020,35.35174674,181.28,181.27,0.67000001]
[1753945921021,9.27151921,181.28,181.27,0.67000001]
[1753945922113,3.75519088,181.28,181.27,17.45468398]
[1753945924694,35.27151921,181.28,181.27,17.45468398]
[1753945925995,35.27151921,181.28,181.27,55.12468398]
[1753945926691,35.96151921,181.28,181.27,38.34000001]
[1753945935426,40.09768481,181.28,181.27,38.34000001]
[1753945939710,44.7571089,181.28,181.27,38.34000001]
[1753945939931,48.89390392,181.28,181.27,38.34000001]
[1753945941043,44.23447983,181.28,181.27,29.01454934]
[1753945944547,40.09768481,181.28,181.27,29.01454934]
[1753945944856,44.23483678,181.28,181.27,29.01454934]
[1753945949555,43.54483678,181.28,181.27,29.01454934]
[1753945950649,39.40768481,181.28,181.27,29.01454934]
[1753945953556,39.40768481,181.28,181.27,10.58344934]
[1753945953760,39.91698481,181.28,181.27,8.91684934]
[1753945953935,39.91698481,181.28,181.27,9.62684934]
[1753945954648,39.91698481,181.28,181.27,0.71]
[1753945955040,6.02593264,181.27,181.26,39.09]
[1753945955242,13.88728912,181.27,181.26,39.09]
[1753945956537,13.88728912,181.27,181.26,38.38]
[1753945957245,14.57728912,181.27,181.26,38.38]
[1753945957568,13.88728912,181.27,181.26,38.38]
[1753945958470,14.57728912,181.27,181.26,38.38]
[1753945961068,13.88728912,181.27,181.26,38.38]
[1753945963655,18.54282921,181.27,181.26,38.38]
[1753945963842,13.88728912,181.27,181.26,39.09]
[1753945964747,13.88728912,181.27,181.26,0.77]
[1753945965063,13.88728912,181.27,181.26,39.09]
[1753945965370,18.54282921,181.27,181.26,39.09]
[1753945965549,18.54282921,181.27,181.26,38.38]
[1753945966750,18.5468725,181.27,181.26,38.38]
[1753945967155,13.89133241,181.27,181.26,38.38]
[1753945968250,18.5468725,181.27,181.26,38.38]
[1753945968454,18.5468725,181.27,181.26,0.06]
[1753945968646,18.5468725,181.27,181.26,38.38]
[1753945972774,18.5468725,181.27,181.26,39.07]
[1753945972966,13.03023986,181.27,181.26,39.07]
[1753945973471,18.5468725,181.27,181.26,39.07]
[1753945975557,18.5468725,181.27,181.26,38.38]
[1753945978282,18.5468725,181.27,181.26,126.08]
[1753945979462,19.2168725,181.27,181.26,126.08]
[1753945979779,19.21743962,181.27,181.26,126.08]